[Event "Early-Titled-Tuesday-Blitz-September-12-2023"]
[Site "Chess.com"]
[Date "2023.09.12"]
[Round "5"]
[White "sqmorr"]
[Black "Rosh1610"]
[Result "0-1"]
[WhiteElo "2220"]
[BlackElo "2438"]
[TimeControl "180+1"]
[EndTime "8:51:35 PDT"]
[Termination "Rosh1610 won by checkmate"]

1. d4 {[%clk 0:03:00.9]} 1... Nf6 {[%clk 0:02:52.3]} 2. c4 {[%clk 0:03:00.2]}
2... e6 {[%clk 0:02:49.8]} 3. Nf3 {[%clk 0:02:59.1]} 3... d5 {[%clk 0:02:49.3]}
4. g3 {[%clk 0:02:58.1]} 4... dxc4 {[%clk 0:02:48.5]} 5. Bg2 {[%clk 0:02:57.2]}
5... c5 {[%clk 0:02:38.6]} 6. O-O {[%clk 0:02:55.7]} 6... cxd4 {[%clk
0:02:24.2]} 7. Qa4+ {[%clk 0:02:51.4]} 7... Nc6 {[%clk 0:02:23.8]} 8. Nxd4
{[%clk 0:02:49.4]} 8... Qxd4 {[%clk 0:02:23.3]} 9. Bxc6+ {[%clk 0:02:48.1]} 9...
Bd7 {[%clk 0:02:22.9]} 10. Rd1 {[%clk 0:02:46]} 10... Qxd1+ {[%clk 0:02:22.5]}
11. Qxd1 {[%clk 0:02:44.8]} 11... Bxc6 {[%clk 0:02:22.6]} 12. Nd2 {[%clk
0:02:43.8]} 12... O-O-O {[%clk 0:02:19.3]} 13. Qc2 {[%clk 0:02:39.3]} 13... Bc5
{[%clk 0:02:10.9]} 14. Qxc4 {[%clk 0:02:26.1]} 14... Bb6 {[%clk 0:02:08.8]} 15.
b4 {[%clk 0:02:13]} 15... Rd4 {[%clk 0:02:04.2]} 16. Qc3 {[%clk 0:02:10.2]}
16... Kb8 {[%clk 0:02:00.3]} 17. Bb2 {[%clk 0:02:06.7]} 17... Rhd8 {[%clk
0:01:51]} 18. Nf1 {[%clk 0:02:04.3]} 18... Ne4 {[%clk 0:01:48.1]} 19. Qc2 {[%clk
0:01:55]} 19... Nxf2 {[%clk 0:01:34.5]} 20. Bxd4 {[%clk 0:01:32.8]} 20... Nh3#
{[%clk 0:01:33.4]} 0-1

[Event "Early-Titled-Tuesday-Blitz-September-12-2023"]
[Site "Chess.com"]
[Date "2023.09.12"]
[Round "5"]
[White "schackspelaren"]
[Black "Irishchessman16"]
[Result "0-1"]
[WhiteElo "2289"]
[BlackElo "2488"]
[TimeControl "180+1"]
[EndTime "8:51:43 PDT"]
[Termination "Irishchessman16 won by resignation"]

1. e4 {[%clk 0:03:00.9]} 1... e5 {[%clk 0:02:56.7]} 2. Nf3 {[%clk 0:03:00.5]}
2... Nf6 {[%clk 0:02:54.5]} 3. Nxe5 {[%clk 0:02:59.6]} 3... Nxe4 {[%clk
0:02:52.9]} 4. Qe2 {[%clk 0:02:51.6]} 4... Qe7 {[%clk 0:02:52.3]} 5. Qxe4 {[%clk
0:02:50.7]} 5... d6 {[%clk 0:02:53]} 6. d4 {[%clk 0:02:50.7]} 6... dxe5 {[%clk
0:02:49.7]} 7. dxe5 {[%clk 0:02:47]} 7... Nc6 {[%clk 0:02:49.1]} 8. f4 {[%clk
0:02:39.1]} 8... f6 {[%clk 0:02:45.1]} 9. Nc3 {[%clk 0:02:20.8]} 9... fxe5
{[%clk 0:02:40]} 10. Nd5 {[%clk 0:02:07]} 10... Qf7 {[%clk 0:02:35.3]} 11. Bc4
{[%clk 0:02:00.3]} 11... Bf5 {[%clk 0:02:21.5]} 12. Nxc7+ {[%clk 0:01:36.4]}
12... Qxc7 {[%clk 0:02:20.6]} 13. Qxf5 {[%clk 0:01:36.5]} 13... Nd4 {[%clk
0:02:20.5]} 14. Qd3 {[%clk 0:01:33.2]} 14... Rc8 {[%clk 0:02:17.1]} 15. Bb5+
{[%clk 0:01:17.6]} 15... Kf7 {[%clk 0:02:10.4]} 16. c3 {[%clk 0:01:16.5]} 16...
Nxb5 {[%clk 0:02:03.7]} 17. Qxb5 {[%clk 0:01:16]} 17... exf4 {[%clk 0:02:03.3]}
18. Qf5+ {[%clk 0:01:11.6]} 18... Ke8 {[%clk 0:02:02.9]} 19. Bxf4 {[%clk
0:01:03.8]} 19... Qc5 {[%clk 0:01:58.9]} 20. O-O-O {[%clk 0:00:57.7]} 20... Qxf5
{[%clk 0:01:57.6]} 0-1

[Event "Early-Titled-Tuesday-Blitz-September-12-2023"]
[Site "Chess.com"]
[Date "2023.09.12"]
[Round "5"]
[White "Korchmar_Vasiliy"]
[Black "FARIZA2018"]
[Result "1-0"]
[WhiteElo "2709"]
[BlackElo "2528"]
[TimeControl "180+1"]
[EndTime "8:51:55 PDT"]
[Termination "Korchmar_Vasiliy won by resignation"]

1. e4 {[%clk 0:03:00.9]} 1... e5 {[%clk 0:02:59.9]} 2. Nf3 {[%clk 0:03:00.8]}
2... Nc6 {[%clk 0:02:59.7]} 3. Bc4 {[%clk 0:03:01.2]} 3... Nf6 {[%clk
0:02:59.3]} 4. d3 {[%clk 0:03:00.7]} 4... Bc5 {[%clk 0:02:58.5]} 5. c3 {[%clk
0:03:00.4]} 5... d6 {[%clk 0:02:58.7]} 6. Bg5 {[%clk 0:03:00.4]} 6... h6 {[%clk
0:02:52.9]} 7. Bh4 {[%clk 0:02:59.5]} 7... a5 {[%clk 0:02:52]} 8. Nbd2 {[%clk
0:02:57.6]} 8... Qe7 {[%clk 0:02:44.6]} 9. O-O {[%clk 0:02:56.4]} 9... Be6
{[%clk 0:02:44]} 10. Re1 {[%clk 0:02:54.4]} 10... Bxc4 {[%clk 0:02:40.1]} 11.
Nxc4 {[%clk 0:02:55.3]} 11... Ba7 {[%clk 0:02:35.7]} 12. d4 {[%clk 0:02:48.4]}
12... O-O {[%clk 0:02:27.9]} 13. Ne3 {[%clk 0:02:48.5]} 13... exd4 {[%clk
0:02:13.9]} 14. Nd5 {[%clk 0:02:46.7]} 14... Qe6 {[%clk 0:02:10.9]} 15. Bxf6
{[%clk 0:02:45.1]} 15... gxf6 {[%clk 0:02:09.2]} 16. Nxc7 {[%clk 0:02:44.9]}
16... Qc4 {[%clk 0:01:24]} 17. Nxa8 {[%clk 0:02:33.2]} 17... Rxa8 {[%clk
0:01:23.5]} 18. cxd4 {[%clk 0:02:27.7]} 18... Nxd4 {[%clk 0:01:22.4]} 19. Rc1
{[%clk 0:02:27.2]} 19... Qb4 {[%clk 0:01:13.6]} 20. b3 {[%clk 0:02:10]} 20...
Kh7 {[%clk 0:00:56.9]} 21. Nxd4 {[%clk 0:02:09.2]} 21... Bxd4 {[%clk 0:00:53.5]}
22. Rc4 {[%clk 0:02:08.7]} 1-0

[Event "Early-Titled-Tuesday-Blitz-September-12-2023"]
[Site "Chess.com"]
[Date "2023.09.12"]
[Round "5"]
[White "Grossboss19"]
[Black "PeshkaCh"]
[Result "0-1"]
[WhiteElo "2539"]
[BlackElo "2780"]
[TimeControl "180+1"]
[EndTime "8:52:02 PDT"]
[Termination "PeshkaCh won by resignation"]

1. d4 {[%clk 0:03:00.9]} 1... Nf6 {[%clk 0:02:58.3]} 2. c4 {[%clk 0:02:59.8]}
2... e6 {[%clk 0:02:58.9]} 3. Nf3 {[%clk 0:02:59.1]} 3... d5 {[%clk 0:02:59.6]}
4. e3 {[%clk 0:02:59.3]} 4... Be7 {[%clk 0:03:00.1]} 5. Nc3 {[%clk 0:02:59.6]}
5... O-O {[%clk 0:02:59.7]} 6. Bd3 {[%clk 0:02:59.8]} 6... c5 {[%clk 0:02:59.8]}
7. cxd5 {[%clk 0:02:59.3]} 7... exd5 {[%clk 0:02:59]} 8. dxc5 {[%clk 0:02:59.4]}
8... Bxc5 {[%clk 0:02:58.9]} 9. O-O {[%clk 0:03:00.3]} 9... Nc6 {[%clk
0:02:59.5]} 10. h3 {[%clk 0:02:58.7]} 10... a6 {[%clk 0:02:49.3]} 11. b3 {[%clk
0:02:52.7]} 11... d4 {[%clk 0:02:46.7]} 12. exd4 {[%clk 0:02:49.2]} 12... Nxd4
{[%clk 0:02:46.1]} 13. Nxd4 {[%clk 0:02:48.8]} 13... Bxd4 {[%clk 0:02:44]} 14.
Bb2 {[%clk 0:02:48.8]} 14... Be6 {[%clk 0:02:44.1]} 15. Rc1 {[%clk 0:02:41.3]}
15... Rc8 {[%clk 0:02:42.9]} 16. Qe2 {[%clk 0:02:37.6]} 16... Re8 {[%clk
0:02:40]} 17. Qd2 {[%clk 0:02:27.1]} 17... Qd7 {[%clk 0:02:25.2]} 18. Rfd1
{[%clk 0:02:17.6]} 18... Red8 {[%clk 0:02:22.9]} 19. Ne2 {[%clk 0:02:06]} 19...
Rxc1 {[%clk 0:02:03.1]} 20. Qxc1 {[%clk 0:01:48.8]} 20... Bxb2 {[%clk
0:01:49.3]} 21. Bxh7+ {[%clk 0:01:24.1]} 21... Kxh7 {[%clk 0:01:39.7]} 22. Rd6
{[%clk 0:01:07.1]} 22... Bxc1 {[%clk 0:01:37.4]} 23. Rxd7 {[%clk 0:01:05.9]}
23... Rxd7 {[%clk 0:01:38.3]} 0-1

[Event "Early-Titled-Tuesday-Blitz-September-12-2023"]
[Site "Chess.com"]
[Date "2023.09.12"]
[Round "5"]
[White "HansOnTwitch"]
[Black "Niilo1"]
[Result "1-0"]
[WhiteElo "3038"]
[BlackElo "2298"]
[TimeControl "180+1"]
[EndTime "8:52:32 PDT"]
[Termination "HansOnTwitch won by resignation"]

1. e4 {[%clk 0:03:00.9]} 1... e5 {[%clk 0:02:55.9]} 2. Nf3 {[%clk 0:03:00.9]}
2... Nc6 {[%clk 0:02:54.7]} 3. Bb5 {[%clk 0:03:01.2]} 3... Nf6 {[%clk
0:02:53.9]} 4. d3 {[%clk 0:03:00.5]} 4... d6 {[%clk 0:02:53.6]} 5. c3 {[%clk
0:02:58.3]} 5... Be7 {[%clk 0:02:50.7]} 6. O-O {[%clk 0:02:58.6]} 6... O-O
{[%clk 0:02:50.8]} 7. Re1 {[%clk 0:02:59]} 7... Re8 {[%clk 0:02:50.9]} 8. Nbd2
{[%clk 0:02:58.9]} 8... Bf8 {[%clk 0:02:50.6]} 9. h3 {[%clk 0:02:57.1]} 9... d5
{[%clk 0:02:50.6]} 10. exd5 {[%clk 0:02:47.8]} 10... Qxd5 {[%clk 0:02:42.1]} 11.
Bc4 {[%clk 0:02:47.4]} 11... Qd6 {[%clk 0:02:15.8]} 12. Ng5 {[%clk 0:02:39.7]}
12... Nd8 {[%clk 0:02:16.1]} 13. Qf3 {[%clk 0:02:31.7]} 13... Re7 {[%clk
0:02:01.2]} 14. Nde4 {[%clk 0:02:18.4]} 14... Nxe4 {[%clk 0:01:58.8]} 15. Nxe4
{[%clk 0:02:19.3]} 15... Qg6 {[%clk 0:01:51]} 16. Bg5 {[%clk 0:02:17.7]} 16...
Re8 {[%clk 0:01:51.2]} 17. Bxd8 {[%clk 0:02:13.6]} 17... Rxd8 {[%clk 0:01:50.9]}
18. Ng5 {[%clk 0:02:14.3]} 18... Be6 {[%clk 0:01:40.4]} 19. Nxe6 {[%clk
0:02:12.9]} 19... fxe6 {[%clk 0:01:41.3]} 20. Rxe5 {[%clk 0:02:12.9]} 20... Rd6
{[%clk 0:01:35.1]} 21. Rae1 {[%clk 0:02:11.1]} 21... Re8 {[%clk 0:01:28.6]} 22.
Qxb7 {[%clk 0:02:10.8]} 22... Rb6 {[%clk 0:01:28.7]} 23. Qxc7 {[%clk 0:02:07.1]}
23... Bd6 {[%clk 0:00:55]} 24. Rxe6 {[%clk 0:01:57.7]} 1-0

[Event "Early-Titled-Tuesday-Blitz-September-12-2023"]
[Site "Chess.com"]
[Date "2023.09.12"]
[Round "5"]
[White "falzehope0"]
[Black "giomar27"]
[Result "1-0"]
[WhiteElo "2444"]
[BlackElo "2271"]
[TimeControl "180+1"]
[EndTime "8:52:33 PDT"]
[Termination "falzehope0 won by resignation"]

1. d4 {[%clk 0:03:00.9]} 1... Nf6 {[%clk 0:02:58.5]} 2. e3 {[%clk 0:03:00.8]}
2... c5 {[%clk 0:02:55.3]} 3. c3 {[%clk 0:02:53.8]} 3... b6 {[%clk 0:02:49.7]}
4. f4 {[%clk 0:02:53.1]} 4... Bb7 {[%clk 0:02:49.5]} 5. Nf3 {[%clk 0:02:53.1]}
5... g6 {[%clk 0:02:49.5]} 6. Bd3 {[%clk 0:02:52.6]} 6... Bg7 {[%clk 0:02:35.4]}
7. O-O {[%clk 0:02:51.9]} 7... O-O {[%clk 0:02:34.5]} 8. f5 {[%clk 0:02:51.5]}
8... d6 {[%clk 0:02:31.5]} 9. Nbd2 {[%clk 0:02:45.5]} 9... Nbd7 {[%clk
0:02:11.6]} 10. Qe1 {[%clk 0:02:41]} 10... e5 {[%clk 0:02:10.7]} 11. fxe6 {[%clk
0:02:40.2]} 11... fxe6 {[%clk 0:02:09.9]} 12. Ng5 {[%clk 0:02:41.1]} 12... Qe7
{[%clk 0:02:06.5]} 13. Qh4 {[%clk 0:02:40.5]} 13... e5 {[%clk 0:02:03.9]} 14.
Nxh7 {[%clk 0:02:40.1]} 14... e4 {[%clk 0:01:53.2]} 15. Bc4+ {[%clk 0:02:30.3]}
15... d5 {[%clk 0:01:52.6]} 16. Bb5 {[%clk 0:02:29.8]} 16... Rf7 {[%clk
0:01:47.5]} 17. Ng5 {[%clk 0:02:28.1]} 17... Rff8 {[%clk 0:01:47.3]} 18. Ndxe4
{[%clk 0:02:00.3]} 18... Nh5 {[%clk 0:01:28.9]} 19. Bd2 {[%clk 0:01:45.5]} 19...
Ndf6 {[%clk 0:01:16.7]} 20. Ng3 {[%clk 0:01:31.7]} 20... Nh7 {[%clk 0:01:07.5]}
21. e4 {[%clk 0:01:31.2]} 21... dxe4 {[%clk 0:01:01.7]} 22. Bc4+ {[%clk
0:01:22.5]} 22... Kh8 {[%clk 0:00:57.7]} 23. Nxh5 {[%clk 0:01:22.5]} 23... Qxg5
{[%clk 0:00:53.1]} 24. Bxg5 {[%clk 0:01:16.8]} 1-0

[Event "Early-Titled-Tuesday-Blitz-September-12-2023"]
[Site "Chess.com"]
[Date "2023.09.12"]
[Round "5"]
[White "nihalsarin"]
[Black "MatyChess1"]
[Result "1-0"]
[WhiteElo "3110"]
[BlackElo "2700"]
[TimeControl "180+1"]
[EndTime "8:52:34 PDT"]
[Termination "nihalsarin won by resignation"]

1. a3 {[%clk 0:03:00.9]} 1... d5 {[%clk 0:02:59.9]} 2. Nf3 {[%clk 0:03:01.1]}
2... Bf5 {[%clk 0:03:00]} 3. e3 {[%clk 0:03:01.8]} 3... e6 {[%clk 0:02:59.8]} 4.
c4 {[%clk 0:03:02.6]} 4... Nf6 {[%clk 0:02:58.2]} 5. Nc3 {[%clk 0:03:03.1]} 5...
c6 {[%clk 0:02:56.7]} 6. d4 {[%clk 0:03:03.7]} 6... Nbd7 {[%clk 0:02:55.4]} 7.
Bd3 {[%clk 0:03:04.4]} 7... Bg6 {[%clk 0:02:54.2]} 8. Bxg6 {[%clk 0:03:03.8]}
8... hxg6 {[%clk 0:02:55.1]} 9. h3 {[%clk 0:03:04.7]} 9... dxc4 {[%clk
0:02:47.3]} 10. a4 {[%clk 0:03:05]} 10... Bb4 {[%clk 0:02:41.4]} 11. O-O {[%clk
0:03:05.4]} 11... O-O {[%clk 0:02:38.6]} 12. Qe2 {[%clk 0:03:05.9]} 12... c5
{[%clk 0:02:00.4]} 13. Qxc4 {[%clk 0:03:05.5]} 13... Nb6 {[%clk 0:01:38.8]} 14.
Qe2 {[%clk 0:03:05.7]} 14... cxd4 {[%clk 0:01:38]} 15. exd4 {[%clk 0:03:06.6]}
15... Rc8 {[%clk 0:01:35]} 16. Ne4 {[%clk 0:03:07.2]} 16... Nxe4 {[%clk
0:01:32.2]} 17. Qxe4 {[%clk 0:03:08.1]} 17... Qd5 {[%clk 0:01:32.6]} 18. Qh4
{[%clk 0:03:08.8]} 18... Qh5 {[%clk 0:01:32.3]} 19. Qe4 {[%clk 0:03:09.2]} 19...
Qd5 {[%clk 0:01:32.3]} 20. Qh4 {[%clk 0:03:09.9]} 20... Qh5 {[%clk 0:01:32.8]}
21. Qg3 {[%clk 0:03:10.7]} 21... Rfd8 {[%clk 0:01:31.3]} 22. Bg5 {[%clk
0:03:10.7]} 22... f6 {[%clk 0:01:21.5]} 23. Be3 {[%clk 0:03:08]} 23... Nd5
{[%clk 0:01:17.6]} 24. Rfc1 {[%clk 0:02:58.4]} 24... Rxc1+ {[%clk 0:01:13.2]}
25. Rxc1 {[%clk 0:02:55.9]} 25... Bd6 {[%clk 0:01:13.8]} 26. Qg4 {[%clk
0:02:56.1]} 26... Qxg4 {[%clk 0:01:14.3]} 27. hxg4 {[%clk 0:02:57]} 27... Kf7
{[%clk 0:01:14.3]} 28. g5 {[%clk 0:02:56.5]} 28... Ke7 {[%clk 0:01:13.6]} 29.
Kf1 {[%clk 0:02:55.7]} 29... Kd7 {[%clk 0:01:13]} 30. Ne1 {[%clk 0:02:50.7]}
30... Rh8 {[%clk 0:01:12.6]} 31. Ke2 {[%clk 0:02:50.6]} 31... Rh1 {[%clk
0:00:54.9]} 32. gxf6 {[%clk 0:02:50.4]} 32... gxf6 {[%clk 0:00:54.6]} 33. Rc2
{[%clk 0:02:51.1]} 33... Nb4 {[%clk 0:00:49.9]} 34. Rc4 {[%clk 0:02:50.9]} 34...
Nd5 {[%clk 0:00:49.1]} 35. Nd3 {[%clk 0:02:51.5]} 35... b6 {[%clk 0:00:44.4]}
36. a5 {[%clk 0:02:51.4]} 36... Ra1 {[%clk 0:00:30.6]} 37. axb6 {[%clk
0:02:51.9]} 37... axb6 {[%clk 0:00:31.5]} 38. Bc1 {[%clk 0:02:52.5]} 38... Ra8
{[%clk 0:00:22.6]} 39. g4 {[%clk 0:02:51.5]} 39... g5 {[%clk 0:00:21.2]} 40. Bd2
{[%clk 0:02:50.7]} 40... Ra1 {[%clk 0:00:21.5]} 41. Bc1 {[%clk 0:02:50.7]} 41...
Ra8 {[%clk 0:00:21.7]} 42. f3 {[%clk 0:02:51.4]} 42... Ra1 {[%clk 0:00:22]} 43.
Rc2 {[%clk 0:02:50.9]} 43... Ra2 {[%clk 0:00:22]} 44. Bd2 {[%clk 0:02:51.1]}
44... Ra1 {[%clk 0:00:22.3]} 45. Rc4 {[%clk 0:02:49.7]} 45... Ra2 {[%clk
0:00:20.6]} 46. Rc1 {[%clk 0:02:50.1]} 46... Ra1 {[%clk 0:00:21]} 47. Rxa1
{[%clk 0:02:50.3]} 1-0

[Event "Early-Titled-Tuesday-Blitz-September-12-2023"]
[Site "Chess.com"]
[Date "2023.09.12"]
[Round "5"]
[White "Ready4abattle"]
[Black "cukin84"]
[Result "1-0"]
[WhiteElo "2326"]
[BlackElo "2207"]
[TimeControl "180+1"]
[EndTime "8:52:34 PDT"]
[Termination "Ready4abattle won by resignation"]

1. e4 {[%clk 0:03:00.9]} 1... c6 {[%clk 0:02:59.3]} 2. d4 {[%clk 0:03:00.3]}
2... d5 {[%clk 0:02:58.9]} 3. e5 {[%clk 0:03:00.7]} 3... c5 {[%clk 0:02:58.7]}
4. Nf3 {[%clk 0:03:00.4]} 4... Nc6 {[%clk 0:02:58.2]} 5. c4 {[%clk 0:03:00.3]}
5... cxd4 {[%clk 0:02:57.6]} 6. Nxd4 {[%clk 0:02:59.2]} 6... Nxe5 {[%clk
0:02:51.7]} 7. cxd5 {[%clk 0:02:59.1]} 7... Bd7 {[%clk 0:02:49]} 8. Nc3 {[%clk
0:02:56.1]} 8... g6 {[%clk 0:02:46.6]} 9. Bf4 {[%clk 0:02:53.2]} 9... Bg7 {[%clk
0:02:46.2]} 10. Be2 {[%clk 0:02:41]} 10... Qb6 {[%clk 0:02:36.6]} 11. Nb3 {[%clk
0:02:28]} 11... Rc8 {[%clk 0:02:30.5]} 12. O-O {[%clk 0:02:26.8]} 12... Nh6
{[%clk 0:02:29.4]} 13. Be3 {[%clk 0:02:16.7]} 13... Qd8 {[%clk 0:02:24.1]} 14.
Rc1 {[%clk 0:01:58]} 14... O-O {[%clk 0:02:21.5]} 15. Ne4 {[%clk 0:01:50.5]}
15... b6 {[%clk 0:02:15.9]} 16. f4 {[%clk 0:01:32.4]} 16... Neg4 {[%clk
0:02:09.8]} 17. Bd4 {[%clk 0:01:29.9]} 17... Rxc1 {[%clk 0:01:56]} 18. Qxc1
{[%clk 0:01:25.4]} 18... Bxd4+ {[%clk 0:01:55.1]} 19. Nxd4 {[%clk 0:01:25.2]}
19... Qc8 {[%clk 0:01:48.3]} 20. h3 {[%clk 0:01:18.7]} 20... Qxc1 {[%clk
0:01:45.2]} 21. Rxc1 {[%clk 0:01:18.2]} 21... Ne3 {[%clk 0:01:45.4]} 22. Rc7
{[%clk 0:01:16.3]} 22... Bf5 {[%clk 0:01:42.7]} 23. Nc3 {[%clk 0:01:05.3]} 23...
a5 {[%clk 0:01:26.8]} 24. Rxe7 {[%clk 0:01:05]} 24... Rd8 {[%clk 0:01:22.3]} 25.
Rxe3 {[%clk 0:01:04]} 25... Bc8 {[%clk 0:01:13.9]} 26. Nc6 {[%clk 0:01:03]}
26... Kg7 {[%clk 0:01:13.5]} 27. Nxd8 {[%clk 0:01:02.7]} 1-0

[Event "Early-Titled-Tuesday-Blitz-September-12-2023"]
[Site "Chess.com"]
[Date "2023.09.12"]
[Round "5"]
[White "mamey78"]
[Black "AlexanderL"]
[Result "0-1"]
[WhiteElo "2599"]
[BlackElo "2855"]
[TimeControl "180+1"]
[EndTime "8:52:37 PDT"]
[Termination "AlexanderL won by resignation"]

1. e4 {[%clk 0:02:57.3]} 1... e5 {[%clk 0:02:59.3]} 2. Nf3 {[%clk 0:02:57.2]}
2... Nf6 {[%clk 0:02:59.6]} 3. d4 {[%clk 0:02:52.6]} 3... Nxe4 {[%clk 0:02:58]}
4. Bd3 {[%clk 0:02:52.7]} 4... Nc6 {[%clk 0:02:54.6]} 5. dxe5 {[%clk 0:02:50.6]}
5... d5 {[%clk 0:02:51]} 6. h3 {[%clk 0:02:39.1]} 6... Bc5 {[%clk 0:02:47.5]} 7.
O-O {[%clk 0:02:39.2]} 7... O-O {[%clk 0:02:47.5]} 8. c4 {[%clk 0:02:34.4]} 8...
Bf5 {[%clk 0:02:29.7]} 9. Nc3 {[%clk 0:01:45.4]} 9... Nb4 {[%clk 0:02:25.6]} 10.
Bb1 {[%clk 0:01:36.3]} 10... Nxf2 {[%clk 0:02:11.9]} 11. Rxf2 {[%clk 0:01:32.2]}
11... Bxf2+ {[%clk 0:02:12]} 12. Kxf2 {[%clk 0:01:30.7]} 12... Bxb1 {[%clk
0:02:12.6]} 13. Rxb1 {[%clk 0:01:29.2]} 13... dxc4 {[%clk 0:02:11.6]} 14. Qxd8
{[%clk 0:01:22.7]} 14... Raxd8 {[%clk 0:02:10.5]} 15. Be3 {[%clk 0:01:23.6]}
15... Nd3+ {[%clk 0:02:08.8]} 16. Kf1 {[%clk 0:01:17.5]} 16... Rfe8 {[%clk
0:02:08.1]} 17. Bg5 {[%clk 0:01:08.7]} 17... Rd7 {[%clk 0:02:07.1]} 18. b3
{[%clk 0:01:02]} 18... Nxe5 {[%clk 0:02:00.1]} 19. bxc4 {[%clk 0:01:01.7]} 19...
Nxf3 {[%clk 0:02:00.2]} 20. gxf3 {[%clk 0:01:01.6]} 20... Rd3 {[%clk 0:01:59.2]}
21. Ne4 {[%clk 0:00:57.2]} 21... Rxf3+ {[%clk 0:01:58.6]} 22. Nf2 {[%clk
0:00:57.9]} 22... f6 {[%clk 0:01:55.2]} 23. Bd2 {[%clk 0:00:56.7]} 23... b6
{[%clk 0:01:54.3]} 24. c5 {[%clk 0:00:56.1]} 24... Rd8 {[%clk 0:01:51]} 25. cxb6
{[%clk 0:00:53.8]} 25... axb6 {[%clk 0:01:51.7]} 26. Rb2 {[%clk 0:00:52.5]}
26... Rd5 {[%clk 0:01:49.7]} 27. Rc2 {[%clk 0:00:49.4]} 27... Rdf5 {[%clk
0:01:43.6]} 28. Be1 {[%clk 0:00:46.7]} 28... Rxh3 {[%clk 0:01:43.2]} 0-1

[Event "Early-Titled-Tuesday-Blitz-September-12-2023"]
[Site "Chess.com"]
[Date "2023.09.12"]
[Round "5"]
[White "jimmy-schlumpf"]
[Black "Oleksandr_Bortnyk"]
[Result "0-1"]
[WhiteElo "2328"]
[BlackElo "3007"]
[TimeControl "180+1"]
[EndTime "8:52:41 PDT"]
[Termination "Oleksandr_Bortnyk won by resignation"]

1. d4 {[%clk 0:03:00.9]} 1... d6 {[%clk 0:02:59]} 2. Nf3 {[%clk 0:02:59.9]} 2...
Nf6 {[%clk 0:02:59.3]} 3. c4 {[%clk 0:02:59.1]} 3... g6 {[%clk 0:02:59.7]} 4.
Nc3 {[%clk 0:02:56.2]} 4... Bf5 {[%clk 0:03:00.4]} 5. g3 {[%clk 0:02:54.2]} 5...
Bg7 {[%clk 0:03:00.8]} 6. Bg2 {[%clk 0:02:54.4]} 6... O-O {[%clk 0:03:01.5]} 7.
O-O {[%clk 0:02:54.2]} 7... Ne4 {[%clk 0:03:02]} 8. Nb1 {[%clk 0:02:51.5]} 8...
c5 {[%clk 0:02:54.5]} 9. d5 {[%clk 0:02:40]} 9... Bd7 {[%clk 0:02:44.6]} 10. Qc2
{[%clk 0:02:36.2]} 10... Nf6 {[%clk 0:02:42.5]} 11. e4 {[%clk 0:02:34.5]} 11...
b5 {[%clk 0:02:42.3]} 12. cxb5 {[%clk 0:02:29.2]} 12... Bxb5 {[%clk 0:02:42]}
13. Re1 {[%clk 0:02:29.4]} 13... Nbd7 {[%clk 0:02:42.6]} 14. Nc3 {[%clk
0:02:28.4]} 14... Ba6 {[%clk 0:02:41.9]} 15. h3 {[%clk 0:02:24.3]} 15... Rb8
{[%clk 0:02:42.1]} 16. e5 {[%clk 0:02:13.8]} 16... dxe5 {[%clk 0:02:41.3]} 17.
Nxe5 {[%clk 0:02:13.5]} 17... Nxe5 {[%clk 0:02:41.4]} 18. Rxe5 {[%clk
0:02:13.3]} 18... Re8 {[%clk 0:02:36.1]} 19. Bf4 {[%clk 0:02:10.7]} 19... Rb4
{[%clk 0:02:32.3]} 20. a3 {[%clk 0:02:06.4]} 20... Rd4 {[%clk 0:02:29.5]} 21.
Rae1 {[%clk 0:02:04.8]} 21... Nh5 {[%clk 0:02:26.6]} 22. Rxh5 {[%clk 0:01:49.3]}
22... Bd3 {[%clk 0:02:16.5]} 23. Qc1 {[%clk 0:01:18.2]} 23... gxh5 {[%clk
0:02:15.3]} 24. b3 {[%clk 0:01:07.9]} 24... Bg6 {[%clk 0:02:14.4]} 25. Be3
{[%clk 0:01:00.9]} 25... Rd3 {[%clk 0:02:13.6]} 26. Ne4 {[%clk 0:00:53.8]} 26...
Rxb3 {[%clk 0:02:00.6]} 27. Bxc5 {[%clk 0:00:50]} 27... Bxe4 {[%clk 0:01:54.4]}
28. Bxe4 {[%clk 0:00:45.1]} 28... Rc3 {[%clk 0:01:54.9]} 29. Qg5 {[%clk
0:00:35.1]} 29... Rxc5 {[%clk 0:01:53]} 30. Qxh5 {[%clk 0:00:32.4]} 30... h6
{[%clk 0:01:51.1]} 0-1

[Event "Early-Titled-Tuesday-Blitz-September-12-2023"]
[Site "Chess.com"]
[Date "2023.09.12"]
[Round "5"]
[White "M_One1126"]
[Black "Jenia84"]
[Result "1-0"]
[WhiteElo "2567"]
[BlackElo "2373"]
[TimeControl "180+1"]
[EndTime "8:52:41 PDT"]
[Termination "M_One1126 won by resignation"]

1. e4 {[%clk 0:03:00.9]} 1... c5 {[%clk 0:02:58.9]} 2. Nf3 {[%clk 0:03:00.9]}
2... d6 {[%clk 0:02:58.7]} 3. d4 {[%clk 0:03:01.3]} 3... cxd4 {[%clk 0:02:59]}
4. Nxd4 {[%clk 0:03:02.2]} 4... Nf6 {[%clk 0:02:59.1]} 5. Nc3 {[%clk 0:03:02.7]}
5... a6 {[%clk 0:02:59.4]} 6. Bg5 {[%clk 0:03:03.2]} 6... e6 {[%clk 0:02:58.9]}
7. f4 {[%clk 0:03:03.8]} 7... Nbd7 {[%clk 0:02:58.9]} 8. Qf3 {[%clk 0:03:00.9]}
8... Qc7 {[%clk 0:02:53.1]} 9. O-O-O {[%clk 0:03:00.6]} 9... b5 {[%clk
0:02:49.6]} 10. Bd3 {[%clk 0:03:00.8]} 10... Bb7 {[%clk 0:02:49.2]} 11. Rhe1
{[%clk 0:03:01.2]} 11... h6 {[%clk 0:02:47.2]} 12. Bh4 {[%clk 0:02:59]} 12...
Be7 {[%clk 0:02:43]} 13. Kb1 {[%clk 0:02:49.9]} 13... O-O-O {[%clk 0:02:36.1]}
14. Bf2 {[%clk 0:02:46.6]} 14... Kb8 {[%clk 0:02:32.2]} 15. h3 {[%clk
0:02:41.5]} 15... e5 {[%clk 0:02:25.1]} 16. Nf5 {[%clk 0:02:38.7]} 16... Bf8
{[%clk 0:02:16.3]} 17. g3 {[%clk 0:02:22.7]} 17... g6 {[%clk 0:02:14.5]} 18. Ne3
{[%clk 0:02:22.1]} 18... Be7 {[%clk 0:02:13.2]} 19. a3 {[%clk 0:02:12.6]} 19...
Nc5 {[%clk 0:02:11.5]} 20. Bg1 {[%clk 0:02:00.7]} 20... Bc6 {[%clk 0:01:52.3]}
21. Ned5 {[%clk 0:01:48.7]} 21... Nxd5 {[%clk 0:01:46.6]} 22. exd5 {[%clk
0:01:48.9]} 22... Bb7 {[%clk 0:01:45]} 23. fxe5 {[%clk 0:01:46.1]} 23... dxe5
{[%clk 0:01:44.7]} 24. Qxf7 {[%clk 0:01:45.5]} 24... Nxd3 {[%clk 0:01:21.6]} 25.
Rxd3 {[%clk 0:01:46.4]} 25... b4 {[%clk 0:01:18.3]} 26. axb4 {[%clk 0:01:33.3]}
26... Bxb4 {[%clk 0:01:17.4]} 27. Qxg6 {[%clk 0:01:28.8]} 27... Rd6 {[%clk
0:00:59.5]} 28. Qe4 {[%clk 0:01:28.6]} 28... Rb6 {[%clk 0:00:57.1]} 29. Bxb6
{[%clk 0:01:27.8]} 29... Qxb6 {[%clk 0:00:57.1]} 30. Qxe5+ {[%clk 0:01:28.1]}
1-0